[Event "Titled Tuesday Blitz August 31 2021"]
[White "Girinath, P.D.S."]
[Black "Jakubowski, Krzysztof"]
[WhiteFideId "5000572"]
[BlackFideId "1112848"]
[WhiteElo "2333"]
[BlackElo "2414"]
[Result "1/2-1/2"]
[Round "07"]
[TimeControl "180+1"]
[Date "2021.08.31"]
[WhiteClock "0:00:02"]
[BlackClock "0:00:06"]

1. e4 {[%clk 0:03:00]}  c5 {[%clk 0:02:59]} 2. Nf3 {[%clk 0:03:00]}  e6 {[%clk 0:02:59]} 3. d3 {[%clk 0:02:59]}  Nc6 {[%clk 0:02:58]} 4. g3 {[%clk 0:02:58]}  Nf6 {[%clk 0:02:57]} 5. Bg2 {[%clk 0:02:58]}  d5 {[%clk 0:02:56]} 6. Qe2 {[%clk 0:02:58]}  Be7 {[%clk 0:02:53]} 7. O-O {[%clk 0:02:57]}  b5 {[%clk 0:02:52]} 8. exd5 {[%clk 0:02:46]}  Nxd5 {[%clk 0:02:50]} 9. a4 {[%clk 0:02:43]}  bxa4 {[%clk 0:02:48]} 10. Nc3 {[%clk 0:02:31]}  Ndb4 {[%clk 0:02:42]} 11. Be3 {[%clk 0:02:11]}  Rb8 {[%clk 0:02:08]} 12. Nxa4 {[%clk 0:02:10]}  Nd4 {[%clk 0:02:04]} 13. Bxd4 {[%clk 0:02:02]}  cxd4 {[%clk 0:02:05]} 14. Qe5 {[%clk 0:02:01]}  Bd7 {[%clk 0:01:48]} 15. Nc5 {[%clk 0:01:49]}  Nc6 {[%clk 0:01:41]} 16. Qxg7 {[%clk 0:01:43]}  Bf6 {[%clk 0:01:40]} 17. Qh6 {[%clk 0:01:41]}  Rxb2 {[%clk 0:01:33]} 18. Ne4 {[%clk 0:01:03]}  Be7 {[%clk 0:01:29]} 19. Qg7 {[%clk 0:01:00]}  Rf8 {[%clk 0:01:29]} 20. Nxd4 {[%clk 0:00:52]}  Nxd4 {[%clk 0:01:17]} 21. Qxd4 {[%clk 0:00:50]}  Rxc2 {[%clk 0:01:18]} 22. Rxa7 {[%clk 0:00:26]}  Bc6 {[%clk 0:01:17]} 23. Rxe7+ {[%clk 0:00:19]}  Kxe7 {[%clk 0:01:08]} 24. Qb4+ {[%clk 0:00:18]}  Ke8 {[%clk 0:01:04]} 25. Nd6+ {[%clk 0:00:10]}  Kd7 {[%clk 0:01:02]} 26. Ne4 {[%clk 0:00:07]}  Qe7 {[%clk 0:00:18]} 27. Nf6+ {[%clk 0:00:06]}  Qxf6 {[%clk 0:00:16]} 28. Qxf8 {[%clk 0:00:06]}  Bxg2 {[%clk 0:00:15]} 29. Kxg2 {[%clk 0:00:07]}  Qf5 {[%clk 0:00:14]} 30. Qa8 {[%clk 0:00:05]}  Qd5+ {[%clk 0:00:14]} 31. Qxd5+ {[%clk 0:00:05]}  exd5 {[%clk 0:00:15]} 32. Re1 {[%clk 0:00:05]}  Rd2 {[%clk 0:00:15]} 33. Re3 {[%clk 0:00:06]}  d4 {[%clk 0:00:13]} 34. Rf3 {[%clk 0:00:06]}  Ke6 {[%clk 0:00:14]} 35. g4 {[%clk 0:00:06]}  h6 {[%clk 0:00:12]} 36. Kg3 {[%clk 0:00:06]}  f6 {[%clk 0:00:12]} 37. Kf4 {[%clk 0:00:06]}  Re2 {[%clk 0:00:09]} 38. h4 {[%clk 0:00:06]}  Re1 {[%clk 0:00:07]} 39. Kg3 {[%clk 0:00:05]}  Rg1+ {[%clk 0:00:07]} 40. Kf4 {[%clk 0:00:05]}  Re1 {[%clk 0:00:06]} 41. Rg3 {[%clk 0:00:04]}  Re2 {[%clk 0:00:06]} 42. Rf3 {[%clk 0:00:02]}  Re1 {[%clk 0:00:06]} 1/2-1/2


[Site "https://www.chess.com"]

[Event "Titled Tuesday Blitz August 31 2021"]
[White "Hampel, Felix"]
[Black "Stribuk, Artiom"]
[WhiteFideId "24668125"]
[BlackFideId "13515659"]
[WhiteElo "2288"]
[BlackElo "2224"]
[Result "0-1"]
[Round "07"]
[TimeControl "180+1"]
[Date "2021.08.31"]
[WhiteClock "0:00:01"]
[BlackClock "0:00:10"]

1. c4 {[%clk 0:03:00]}  Nf6 {[%clk 0:02:58]} 2. Nf3 {[%clk 0:03:00]}  c5 {[%clk 0:02:56]} 3. Nc3 {[%clk 0:02:59]}  b6 {[%clk 0:02:56]} 4. d4 {[%clk 0:02:57]}  cxd4 {[%clk 0:02:55]} 5. Nxd4 {[%clk 0:02:52]}  Bb7 {[%clk 0:02:55]} 6. f3 {[%clk 0:02:49]}  d6 {[%clk 0:02:54]} 7. e4 {[%clk 0:02:49]}  e6 {[%clk 0:02:55]} 8. Be3 {[%clk 0:02:49]}  Be7 {[%clk 0:02:55]} 9. Be2 {[%clk 0:02:49]}  O-O {[%clk 0:02:56]} 10. O-O {[%clk 0:02:49]}  a6 {[%clk 0:02:55]} 11. Qd2 {[%clk 0:02:49]}  Nbd7 {[%clk 0:02:56]} 12. Rfd1 {[%clk 0:02:42]}  Rc8 {[%clk 0:02:55]} 13. Rac1 {[%clk 0:02:40]}  Qc7 {[%clk 0:02:54]} 14. Bf1 {[%clk 0:02:34]}  Qb8 {[%clk 0:02:53]} 15. Qf2 {[%clk 0:02:34]}  Rfe8 {[%clk 0:02:34]} 16. a3 {[%clk 0:02:03]}  Ne5 {[%clk 0:02:25]} 17. Na4 {[%clk 0:01:50]}  Ned7 {[%clk 0:01:39]} 18. b4 {[%clk 0:01:02]}  d5 {[%clk 0:01:22]} 19. exd5 {[%clk 0:00:57]}  exd5 {[%clk 0:01:21]} 20. Nf5 {[%clk 0:00:56]}  Bf8 {[%clk 0:00:48]} 21. Nxb6 {[%clk 0:00:25]}  Nxb6 {[%clk 0:00:47]} 22. Bxb6 {[%clk 0:00:25]}  dxc4 {[%clk 0:00:44]} 23. Bxc4 {[%clk 0:00:23]}  Qe5 {[%clk 0:00:41]} 24. Ng3 {[%clk 0:00:15]}  Qf4 {[%clk 0:00:30]} 25. Qa2 {[%clk 0:00:13]}  Bd5 {[%clk 0:00:20]} 26. Bxd5 {[%clk 0:00:11]}  Rxc1 {[%clk 0:00:18]} 27. Bxf7+ {[%clk 0:00:11]}  Kh8 {[%clk 0:00:19]} 28. Rf1 {[%clk 0:00:08]}  Rec8 {[%clk 0:00:17]} 29. Qf2 {[%clk 0:00:04]}  R8c2 {[%clk 0:00:14]} 30. Qe3 {[%clk 0:00:04]}  Rxf1+ {[%clk 0:00:14]} 31. Nxf1 {[%clk 0:00:03]}  Qxe3+ {[%clk 0:00:13]} 32. Nxe3 {[%clk 0:00:03]}  Rc3 {[%clk 0:00:13]} 33. Nf5 {[%clk 0:00:01]}  Rxa3 {[%clk 0:00:12]} 34. Ba5 {[%clk 0:00:01]}  Ra1+ {[%clk 0:00:11]} 35. Kf2 {[%clk 0:00:01]}  Rb1 {[%clk 0:00:12]} 36. Kg3 {[%clk 0:00:01]}  Bxb4 {[%clk 0:00:12]} 37. Bc7 {[%clk 0:00:01]}  Bf8 {[%clk 0:00:11]} 38. Bc4 {[%clk 0:00:01]}  Rc1 {[%clk 0:00:10]} 39. Ne3 {[%clk 0:00:01]}  Bc5 {[%clk 0:00:10]} 0-1


[Site "https://www.chess.com"]

[Event "Titled Tuesday Blitz August 31 2021"]
[White "Hoffmann, Asa"]
[Black "Maiorov, Nikita"]
[WhiteFideId "2001470"]
[BlackFideId "13501720"]
[WhiteElo "2117"]
[BlackElo "2440"]
[Result "0-1"]
[Round "07"]
[TimeControl "180+1"]
[Date "2021.08.31"]
[WhiteClock "0:01:02"]
[BlackClock "0:00:21"]

1. d4 {[%clk 0:02:57]}  Nf6 {[%clk 0:02:57]} 2. Bg5 {[%clk 0:02:54]}  e6 {[%clk 0:02:55]} 3. Nd2 {[%clk 0:02:53]}  c5 {[%clk 0:02:52]} 4. e3 {[%clk 0:02:48]}  cxd4 {[%clk 0:02:51]} 5. exd4 {[%clk 0:02:48]}  Be7 {[%clk 0:02:50]} 6. Bd3 {[%clk 0:02:48]}  O-O {[%clk 0:02:49]} 7. c3 {[%clk 0:02:47]}  Nc6 {[%clk 0:02:47]} 8. Qe2 {[%clk 0:02:46]}  Nd5 {[%clk 0:02:43]} 9. Bxe7 {[%clk 0:02:44]}  Ncxe7 {[%clk 0:02:43]} 10. Nh3 {[%clk 0:02:40]}  h6 {[%clk 0:02:34]} 11. O-O {[%clk 0:02:37]}  Rb8 {[%clk 0:02:16]} 12. f4 {[%clk 0:02:30]}  d6 {[%clk 0:02:08]} 13. Rae1 {[%clk 0:02:22]}  f5 {[%clk 0:01:50]} 14. Qf3 {[%clk 0:01:58]}  Nf6 {[%clk 0:01:44]} 15. Nf2 {[%clk 0:01:57]}  b5 {[%clk 0:01:40]} 16. h3 {[%clk 0:01:55]}  b4 {[%clk 0:01:40]} 17. c4 {[%clk 0:01:54]}  d5 {[%clk 0:01:39]} 18. c5 {[%clk 0:01:52]}  Ne4 {[%clk 0:01:38]} 19. Bxe4 {[%clk 0:01:52]}  dxe4 {[%clk 0:01:34]} 20. Qe3 {[%clk 0:01:41]}  Ba6 {[%clk 0:01:33]} 21. Nb3 {[%clk 0:01:35]}  Nd5 {[%clk 0:01:31]} 22. Qg3 {[%clk 0:01:30]}  Bxf1 {[%clk 0:01:29]} 23. Rxf1 {[%clk 0:01:30]}  a5 {[%clk 0:01:03]} 24. Rd1 {[%clk 0:01:28]}  a4 {[%clk 0:01:01]} 25. Nc1 {[%clk 0:01:28]}  a3 {[%clk 0:00:57]} 26. b3 {[%clk 0:01:25]}  e3 {[%clk 0:00:54]} 27. Nfd3 {[%clk 0:01:24]}  Nc3 {[%clk 0:00:53]} 28. Re1 {[%clk 0:01:23]}  Qxd4 {[%clk 0:00:49]} 29. Qxe3 {[%clk 0:01:20]}  Rbd8 {[%clk 0:00:41]} 30. Qxd4 {[%clk 0:01:15]}  Rxd4 {[%clk 0:00:40]} 31. Rxe6 {[%clk 0:01:14]}  Nxa2 {[%clk 0:00:25]} 32. Nxa2 {[%clk 0:01:10]}  Rxd3 {[%clk 0:00:24]} 33. Nxb4 {[%clk 0:01:10]}  Rxb3 {[%clk 0:00:24]} 34. Nd5 {[%clk 0:01:08]}  a2 {[%clk 0:00:22]} 35. Ne7+ {[%clk 0:01:02]}  Kf7 {[%clk 0:00:21]} 0-1


[Site "https://www.chess.com"]

[Event "Titled Tuesday Blitz August 31 2021"]
[White "Iskusnyh, Sergei"]
[Black "Ponikarovsky, Alexey"]
[WhiteFideId "4120027"]
[BlackFideId "4122887"]
[WhiteElo "2492"]
[BlackElo "1944"]
[Result "1/2-1/2"]
[Round "07"]
[TimeControl "180+1"]
[Date "2021.08.31"]
[WhiteClock "0:00:19"]
[BlackClock "0:00:47"]

1. d4 {[%clk 0:03:00]}  d5 {[%clk 0:02:59]} 2. c4 {[%clk 0:03:00]}  e6 {[%clk 0:03:00]} 3. Nf3 {[%clk 0:02:59]}  Nf6 {[%clk 0:03:00]} 4. g3 {[%clk 0:02:58]}  Bb4+ {[%clk 0:03:01]} 5. Bd2 {[%clk 0:02:57]}  Bxd2+ {[%clk 0:03:02]} 6. Nbxd2 {[%clk 0:02:54]}  O-O {[%clk 0:03:02]} 7. Bg2 {[%clk 0:02:55]}  b6 {[%clk 0:03:03]} 8. O-O {[%clk 0:02:54]}  Bb7 {[%clk 0:03:03]} 9. cxd5 {[%clk 0:02:54]}  Bxd5 {[%clk 0:03:04]} 10. Qc2 {[%clk 0:02:52]}  Bb7 {[%clk 0:03:03]} 11. Rac1 {[%clk 0:02:50]}  Na6 {[%clk 0:03:00]} 12. Rfd1 {[%clk 0:02:47]}  Rb8 {[%clk 0:02:56]} 13. a3 {[%clk 0:02:36]}  h6 {[%clk 0:02:54]} 14. b4 {[%clk 0:02:36]}  c6 {[%clk 0:02:45]} 15. Ne5 {[%clk 0:02:24]}  Rc8 {[%clk 0:02:38]} 16. Qb2 {[%clk 0:01:30]}  Nb8 {[%clk 0:02:35]} 17. Rc2 {[%clk 0:01:18]}  Rc7 {[%clk 0:02:28]} 18. Rdc1 {[%clk 0:01:16]}  Nfd7 {[%clk 0:02:27]} 19. Ndc4 {[%clk 0:01:10]}  Nxe5 {[%clk 0:02:22]} 20. Nxe5 {[%clk 0:01:07]}  Qd6 {[%clk 0:02:20]} 21. b5 {[%clk 0:01:02]}  Rfc8 {[%clk 0:02:16]} 22. e3 {[%clk 0:01:00]}  c5 {[%clk 0:02:10]} 23. dxc5 {[%clk 0:00:53]}  bxc5 {[%clk 0:02:06]} 24. Nc4 {[%clk 0:00:46]}  Qe7 {[%clk 0:02:06]} 25. Rd2 {[%clk 0:00:42]}  Bxg2 {[%clk 0:02:04]} 26. Kxg2 {[%clk 0:00:43]}  Nd7 {[%clk 0:02:05]} 27. Rcd1 {[%clk 0:00:30]}  Nb6 {[%clk 0:02:05]} 28. Na5 {[%clk 0:00:28]}  c4 {[%clk 0:02:02]} 29. Nc6 {[%clk 0:00:24]}  Qf6 {[%clk 0:01:57]} 30. Qc2 {[%clk 0:00:21]}  g6 {[%clk 0:01:52]} 31. a4 {[%clk 0:00:20]}  a6 {[%clk 0:01:41]} 32. e4 {[%clk 0:00:20]}  axb5 {[%clk 0:01:34]} 33. axb5 {[%clk 0:00:21]}  h5 {[%clk 0:01:32]} 34. h3 {[%clk 0:00:20]}  h4 {[%clk 0:01:29]} 35. g4 {[%clk 0:00:20]}  Qf4 {[%clk 0:01:26]} 36. Rd4 {[%clk 0:00:19]}  Rb7 {[%clk 0:01:17]} 37. Qc3 {[%clk 0:00:19]}  Kh7 {[%clk 0:01:15]} 38. Rd8 {[%clk 0:00:18]}  Qxe4+ {[%clk 0:01:10]} 39. f3 {[%clk 0:00:18]}  Qe2+ {[%clk 0:01:07]} 40. Kg1 {[%clk 0:00:19]}  Rxd8 {[%clk 0:01:04]} 41. Rxd8 {[%clk 0:00:19]}  e5 {[%clk 0:00:47]} 1/2-1/2


[Site "https://www.chess.com"]

[Event "Titled Tuesday Blitz August 31 2021"]
[White "Ismagilov, Damir"]
[Black "Gubanov, Oleg"]
[WhiteFideId "34199982"]
[BlackFideId "14115115"]
[WhiteElo "2075"]
[BlackElo "2138"]
[Result "1/2-1/2"]
[Round "07"]
[TimeControl "180+1"]
[Date "2021.08.31"]
[WhiteClock "0:01:18"]
[BlackClock "0:00:14"]

1. d4 {[%clk 0:03:00]}  b5 {[%clk 0:02:59]} 2. a4 {[%clk 0:02:59]}  b4 {[%clk 0:02:58]} 3. c4 {[%clk 0:02:55]}  bxc3 {[%clk 0:02:58]} 4. Nxc3 {[%clk 0:02:55]}  e6 {[%clk 0:02:54]} 5. e3 {[%clk 0:02:54]}  Nc6 {[%clk 0:02:51]} 6. Nf3 {[%clk 0:02:52]}  Bb7 {[%clk 0:02:50]} 7. b3 {[%clk 0:02:48]}  Nf6 {[%clk 0:02:49]} 8. Bb2 {[%clk 0:02:49]}  Nb4 {[%clk 0:02:49]} 9. Be2 {[%clk 0:02:47]}  Be7 {[%clk 0:02:49]} 10. O-O {[%clk 0:02:46]}  O-O {[%clk 0:02:48]} 11. Rc1 {[%clk 0:02:47]}  Ne4 {[%clk 0:02:29]} 12. Ne5 {[%clk 0:02:37]}  Nxc3 {[%clk 0:02:18]} 13. Bxc3 {[%clk 0:02:38]}  f5 {[%clk 0:02:03]} 14. Nc4 {[%clk 0:02:37]}  a5 {[%clk 0:01:59]} 15. Bf3 {[%clk 0:02:36]}  Qb8 {[%clk 0:01:10]} 16. Ne5 {[%clk 0:02:32]}  Rd8 {[%clk 0:00:44]} 17. Bxb4 {[%clk 0:02:31]}  Bxb4 {[%clk 0:00:39]} 18. Bxb7 {[%clk 0:02:29]}  Qxb7 {[%clk 0:00:39]} 19. Qf3 {[%clk 0:02:30]}  Qxf3 {[%clk 0:00:35]} 20. gxf3 {[%clk 0:02:31]}  Bd6 {[%clk 0:00:26]} 21. Nc4 {[%clk 0:02:31]}  Bb4 {[%clk 0:00:26]} 22. f4 {[%clk 0:02:29]}  d6 {[%clk 0:00:25]} 23. Kg2 {[%clk 0:02:28]}  Rab8 {[%clk 0:00:22]} 24. Rc2 {[%clk 0:02:28]}  Rb7 {[%clk 0:00:23]} 25. Rfc1 {[%clk 0:02:27]}  Kf8 {[%clk 0:00:20]} 26. Nb2 {[%clk 0:02:26]}  Ba3 {[%clk 0:00:20]} 27. Ra1 {[%clk 0:02:19]}  Bxb2 {[%clk 0:00:19]} 28. Rxb2 {[%clk 0:02:20]}  Rdb8 {[%clk 0:00:19]} 29. Rab1 {[%clk 0:02:20]}  Ke7 {[%clk 0:00:19]} 30. Kf3 {[%clk 0:02:20]}  Kd7 {[%clk 0:00:19]} 31. Ke2 {[%clk 0:02:21]}  Kc6 {[%clk 0:00:18]} 32. Rc2+ {[%clk 0:02:19]}  Kd7 {[%clk 0:00:18]} 33. Rc3 {[%clk 0:02:19]}  Rb4 {[%clk 0:00:18]} 34. Rbc1 {[%clk 0:02:19]}  R8b7 {[%clk 0:00:18]} 35. Rb1 {[%clk 0:02:08]}  Rxa4 {[%clk 0:00:18]} 36. Kd2 {[%clk 0:02:06]}  Rab4 {[%clk 0:00:18]} 37. Ra1 {[%clk 0:02:00]}  Rxb3 {[%clk 0:00:17]} 38. Rxb3 {[%clk 0:02:01]}  Rxb3 {[%clk 0:00:18]} 39. Rxa5 {[%clk 0:02:02]}  Rb2+ {[%clk 0:00:18]} 40. Ke1 {[%clk 0:02:02]}  Rc2 {[%clk 0:00:18]} 41. Ra7 {[%clk 0:02:01]}  Kc6 {[%clk 0:00:17]} 42. h4 {[%clk 0:02:00]}  Rc1+ {[%clk 0:00:17]} 43. Ke2 {[%clk 0:01:59]}  Rh1 {[%clk 0:00:17]} 44. Ra6+ {[%clk 0:01:57]}  Kd7 {[%clk 0:00:17]} 45. Ra8 {[%clk 0:01:52]}  Rxh4 {[%clk 0:00:17]} 46. Rg8 {[%clk 0:01:53]}  Rg4 {[%clk 0:00:17]} 47. Kf3 {[%clk 0:01:48]}  h6 {[%clk 0:00:16]} 48. e4 {[%clk 0:01:47]}  Rg1 {[%clk 0:00:11]} 49. exf5 {[%clk 0:01:41]}  exf5 {[%clk 0:00:12]} 50. Rf8 {[%clk 0:01:41]}  Ke6 {[%clk 0:00:12]} 51. Re8+ {[%clk 0:01:40]}  Kf7 {[%clk 0:00:12]} 52. Rc8 {[%clk 0:01:40]}  Rc1 {[%clk 0:00:13]} 53. d5 {[%clk 0:01:39]}  Rc5 {[%clk 0:00:12]} 54. Ke3 {[%clk 0:01:40]}  Rxd5 {[%clk 0:00:12]} 55. Rxc7+ {[%clk 0:01:40]}  Kf6 {[%clk 0:00:12]} 56. Rd7 {[%clk 0:01:40]}  g5 {[%clk 0:00:12]} 57. fxg5+ {[%clk 0:01:38]}  hxg5 {[%clk 0:00:13]} 58. f4 {[%clk 0:01:38]}  g4 {[%clk 0:00:13]} 59. Rd8 {[%clk 0:01:38]}  Ke7 {[%clk 0:00:12]} 60. Rg8 {[%clk 0:01:38]}  Ra5 {[%clk 0:00:12]} 61. Rg7+ {[%clk 0:01:38]}  Kf6 {[%clk 0:00:12]} 62. Rd7 {[%clk 0:01:37]}  Ra3+ {[%clk 0:00:11]} 63. Kf2 {[%clk 0:01:36]}  Ke6 {[%clk 0:00:12]} 64. Rd8 {[%clk 0:01:34]}  Kd5 {[%clk 0:00:12]} 65. Re8 {[%clk 0:01:33]}  Ra4 {[%clk 0:00:12]} 66. Kg3 {[%clk 0:01:32]}  Ra3+ {[%clk 0:00:12]} 67. Kh4 {[%clk 0:01:32]}  Rf3 {[%clk 0:00:12]} 68. Kg5 {[%clk 0:01:32]}  g3 {[%clk 0:00:12]} 69. Kxf5 {[%clk 0:01:32]}  g2 {[%clk 0:00:12]} 70. Rg8 {[%clk 0:01:33]}  Rf2 {[%clk 0:00:12]} 71. Rg3 {[%clk 0:01:31]}  Kc4 {[%clk 0:00:11]} 72. Ke4 {[%clk 0:01:30]}  d5+ {[%clk 0:00:12]} 73. Ke3 {[%clk 0:01:31]}  Ra2 {[%clk 0:00:11]} 74. f5 {[%clk 0:01:29]}  d4+ {[%clk 0:00:11]} 75. Ke4 {[%clk 0:01:30]}  Re2+ {[%clk 0:00:11]} 76. Kf3 {[%clk 0:01:28]}  Re3+ {[%clk 0:00:11]} 77. Kxg2 {[%clk 0:01:28]}  Rxg3+ {[%clk 0:00:11]} 78. Kxg3 {[%clk 0:01:28]}  d3 {[%clk 0:00:12]} 79. Kf2 {[%clk 0:01:24]}  Kc3 {[%clk 0:00:12]} 80. f6 {[%clk 0:01:24]}  d2 {[%clk 0:00:12]} 81. f7 {[%clk 0:01:25]}  d1=Q {[%clk 0:00:13]} 82. f8=Q {[%clk 0:01:25]}  Qd4+ {[%clk 0:00:13]} 83. Kf1 {[%clk 0:01:23]}  Qd3+ {[%clk 0:00:13]} 84. Kg1 {[%clk 0:01:21]}  Qd4+ {[%clk 0:00:13]} 85. Kh2 {[%clk 0:01:19]}  Qe5+ {[%clk 0:00:12]} 86. Kh3 {[%clk 0:01:16]}  Qe3+ {[%clk 0:00:12]} 87. Kg4 {[%clk 0:01:16]}  Qg1+ {[%clk 0:00:12]} 88. Kh5 {[%clk 0:01:15]}  Qh2+ {[%clk 0:00:13]} 89. Kg6 {[%clk 0:01:15]}  Qg3+ {[%clk 0:00:13]} 90. Kh7 {[%clk 0:01:16]}  Qh4+ {[%clk 0:00:13]} 91. Kg8 {[%clk 0:01:16]}  Qg5+ {[%clk 0:00:14]} 92. Qg7+ {[%clk 0:01:17]}  Qxg7+ {[%clk 0:00:14]} 93. Kxg7 {[%clk 0:01:18]} 1/2-1/2


[Site "https://www.chess.com"]

[Event "Titled Tuesday Blitz August 31 2021"]
[White "Jobava, Baadur"]
[Black "Jarovinsky, Alexey"]
[WhiteFideId "13601520"]
[BlackFideId "14115131"]
[WhiteElo "2748"]
[BlackElo "2446"]
[Result "1-0"]
[Round "07"]
[TimeControl "180+1"]
[Date "2021.08.31"]
[WhiteClock "0:00:11"]
[BlackClock "0:00:02"]

1. e4 {[%clk 0:02:56]}  Nc6 {[%clk 0:02:47]} 2. Nc3 {[%clk 0:02:55]}  e6 {[%clk 0:02:42]} 3. Nf3 {[%clk 0:02:52]}  Bb4 {[%clk 0:02:41]} 4. Be2 {[%clk 0:02:47]}  d5 {[%clk 0:02:35]} 5. O-O {[%clk 0:02:47]}  Bxc3 {[%clk 0:02:30]} 6. dxc3 {[%clk 0:02:48]}  dxe4 {[%clk 0:02:30]} 7. Qxd8+ {[%clk 0:02:46]}  Nxd8 {[%clk 0:02:30]} 8. Ng5 {[%clk 0:02:39]}  Nf6 {[%clk 0:02:25]} 9. Rd1 {[%clk 0:02:35]}  Nc6 {[%clk 0:02:23]} 10. h4 {[%clk 0:02:31]}  e5 {[%clk 0:02:18]} 11. b3 {[%clk 0:01:56]}  h6 {[%clk 0:02:13]} 12. Nh3 {[%clk 0:01:51]}  Bxh3 {[%clk 0:02:12]} 13. gxh3 {[%clk 0:01:51]}  O-O {[%clk 0:02:10]} 14. Be3 {[%clk 0:01:44]}  b6 {[%clk 0:01:50]} 15. a4 {[%clk 0:01:31]}  Ne7 {[%clk 0:01:44]} 16. a5 {[%clk 0:01:10]}  Nf5 {[%clk 0:01:43]} 17. Bc1 {[%clk 0:01:06]}  Nxh4 {[%clk 0:01:31]} 18. Ba3 {[%clk 0:01:06]}  Rfd8 {[%clk 0:01:23]} 19. Bb5 {[%clk 0:00:51]}  Nf3+ {[%clk 0:01:20]} 20. Kf1 {[%clk 0:00:47]}  Nd5 {[%clk 0:00:58]} 21. Bb2 {[%clk 0:00:30]}  Ne7 {[%clk 0:00:31]} 22. Ke2 {[%clk 0:00:24]}  c6 {[%clk 0:00:25]} 23. Ba6 {[%clk 0:00:22]}  b5 {[%clk 0:00:23]} 24. Bb7 {[%clk 0:00:22]}  Rab8 {[%clk 0:00:20]} 25. a6 {[%clk 0:00:22]}  f5 {[%clk 0:00:11]} 26. Kf1 {[%clk 0:00:21]}  Kf7 {[%clk 0:00:08]} 27. Ba3 {[%clk 0:00:21]}  Ke6 {[%clk 0:00:07]} 28. Bc5 {[%clk 0:00:20]}  Rxd1+ {[%clk 0:00:04]} 29. Rxd1 {[%clk 0:00:19]}  Nd5 {[%clk 0:00:04]} 30. Bxa7 {[%clk 0:00:20]}  Rf8 {[%clk 0:00:04]} 31. Bc5 {[%clk 0:00:19]}  Rd8 {[%clk 0:00:02]} 32. Ra1 {[%clk 0:00:13]}  Nxc3 {[%clk 0:00:01]} 33. a7 {[%clk 0:00:13]}  f4 {[%clk 0:00:01]} 34. a8=Q {[%clk 0:00:12]}  Rxa8 {[%clk 0:00:01]} 35. Bxa8 {[%clk 0:00:12]}  Nd2+ {[%clk 0:00:01]} 36. Kg2 {[%clk 0:00:12]}  f3+ {[%clk 0:00:01]} 37. Kh2 {[%clk 0:00:11]}  Ne2 {[%clk 0:00:01]} 38. Bxc6 {[%clk 0:00:11]}  e3 {[%clk 0:00:02]} 39. Bxe3 {[%clk 0:00:11]} 1-0


[Site "https://www.chess.com"]

[Event "Titled Tuesday Blitz August 31 2021"]
[White "Khoroshev, Nikita"]
[Black "Reprintsev, Alexander"]
[WhiteFideId "14200287"]
[BlackFideId "14100541"]
[WhiteElo "2328"]
[BlackElo "2126"]
[Result "1-0"]
[Round "07"]
[TimeControl "180+1"]
[Date "2021.08.31"]
[WhiteClock "0:00:03"]
[BlackClock "0:00:20"]

1. e4 {[%clk 0:03:00]}  d5 {[%clk 0:02:58]} 2. exd5 {[%clk 0:03:00]}  Qxd5 {[%clk 0:02:57]} 3. Nc3 {[%clk 0:03:01]}  Qa5 {[%clk 0:02:56]} 4. d4 {[%clk 0:02:54]}  Nf6 {[%clk 0:02:56]} 5. Bc4 {[%clk 0:02:53]}  Bg4 {[%clk 0:02:55]} 6. f3 {[%clk 0:02:52]}  Be6 {[%clk 0:02:50]} 7. Bxe6 {[%clk 0:02:51]}  fxe6 {[%clk 0:02:50]} 8. Qe2 {[%clk 0:02:50]}  Nc6 {[%clk 0:02:49]} 9. Be3 {[%clk 0:02:42]}  Nd5 {[%clk 0:02:48]} 10. Qd2 {[%clk 0:02:32]}  O-O-O {[%clk 0:02:41]} 11. Nge2 {[%clk 0:02:26]}  g6 {[%clk 0:02:27]} 12. Nxd5 {[%clk 0:01:56]}  Qxd2+ {[%clk 0:02:24]} 13. Kxd2 {[%clk 0:01:50]}  exd5 {[%clk 0:02:25]} 14. Nf4 {[%clk 0:01:45]}  e5 {[%clk 0:02:21]} 15. dxe5 {[%clk 0:01:35]}  d4 {[%clk 0:02:20]} 16. Bf2 {[%clk 0:01:30]}  Bb4+ {[%clk 0:02:18]} 17. Ke2 {[%clk 0:01:10]}  Nxe5 {[%clk 0:02:17]} 18. Rhd1 {[%clk 0:01:10]}  Rhe8 {[%clk 0:02:09]} 19. Kf1 {[%clk 0:01:08]}  c5 {[%clk 0:01:34]} 20. Nd3 {[%clk 0:00:45]}  Nxd3 {[%clk 0:01:25]} 21. cxd3 {[%clk 0:00:46]}  Kd7 {[%clk 0:01:21]} 22. Rac1 {[%clk 0:00:43]}  Rc8 {[%clk 0:01:18]} 23. Rc4 {[%clk 0:00:33]}  Ba5 {[%clk 0:01:18]} 24. Rdc1 {[%clk 0:00:31]}  b6 {[%clk 0:01:09]} 25. R1c2 {[%clk 0:00:29]}  Re5 {[%clk 0:01:05]} 26. Bxd4 {[%clk 0:00:20]}  Rd5 {[%clk 0:01:04]} 27. Bc3 {[%clk 0:00:16]}  b5 {[%clk 0:00:57]} 28. Rh4 {[%clk 0:00:15]}  Bxc3 {[%clk 0:00:52]} 29. Rxh7+ {[%clk 0:00:16]}  Kc6 {[%clk 0:00:50]} 30. Rxc3 {[%clk 0:00:16]}  b4 {[%clk 0:00:50]} 31. Rc4 {[%clk 0:00:14]}  Rxd3 {[%clk 0:00:49]} 32. Rg7 {[%clk 0:00:15]}  Rd6 {[%clk 0:00:48]} 33. Rg4 {[%clk 0:00:15]}  Kb5 {[%clk 0:00:46]} 34. R7xg6 {[%clk 0:00:14]}  Rxg6 {[%clk 0:00:46]} 35. Rxg6 {[%clk 0:00:14]}  c4 {[%clk 0:00:46]} 36. Rg5+ {[%clk 0:00:15]}  Ka4 {[%clk 0:00:46]} 37. Rg7 {[%clk 0:00:15]}  a5 {[%clk 0:00:46]} 38. Ke2 {[%clk 0:00:10]}  b3 {[%clk 0:00:43]} 39. axb3+ {[%clk 0:00:07]}  Kxb3 {[%clk 0:00:43]} 40. Rb7+ {[%clk 0:00:07]}  Kc2 {[%clk 0:00:43]} 41. f4 {[%clk 0:00:07]}  a4 {[%clk 0:00:41]} 42. f5 {[%clk 0:00:07]}  Re8+ {[%clk 0:00:41]} 43. Kf3 {[%clk 0:00:07]}  c3 {[%clk 0:00:40]} 44. bxc3 {[%clk 0:00:07]}  a3 {[%clk 0:00:40]} 45. Ra7 {[%clk 0:00:07]}  Kb2 {[%clk 0:00:40]} 46. g4 {[%clk 0:00:07]}  a2 {[%clk 0:00:40]} 47. g5 {[%clk 0:00:05]}  Rc8 {[%clk 0:00:40]} 48. Rxa2+ {[%clk 0:00:04]}  Kxa2 {[%clk 0:00:40]} 49. f6 {[%clk 0:00:05]}  Kb3 {[%clk 0:00:40]} 50. Kg4 {[%clk 0:00:03]}  Kc4 {[%clk 0:00:39]} 51. Kf5 {[%clk 0:00:03]}  Kd5 {[%clk 0:00:39]} 52. g6 {[%clk 0:00:02]}  Rxc3 {[%clk 0:00:39]} 53. g7 {[%clk 0:00:03]}  Rf3+ {[%clk 0:00:39]} 54. Kg6 {[%clk 0:00:04]}  Ke5 {[%clk 0:00:38]} 55. g8=Q {[%clk 0:00:03]}  Rxf6+ {[%clk 0:00:39]} 56. Kg7 {[%clk 0:00:04]}  Rf5 {[%clk 0:00:38]} 57. Qe8+ {[%clk 0:00:04]}  Kf4 {[%clk 0:00:38]} 58. Qa4+ {[%clk 0:00:02]}  Kg5 {[%clk 0:00:38]} 59. Qd4 {[%clk 0:00:02]}  Rf4 {[%clk 0:00:37]} 60. Qe5+ {[%clk 0:00:02]}  Rf5 {[%clk 0:00:36]} 61. Qe7+ {[%clk 0:00:03]}  Kh5 {[%clk 0:00:35]} 62. h4 {[%clk 0:00:03]}  Ra5 {[%clk 0:00:27]} 63. Kh7 {[%clk 0:00:03]}  Ra4 {[%clk 0:00:20]} 64. Qe8+ {[%clk 0:00:03]} 1-0


[Site "https://www.chess.com"]